bitfinex/quotes_SOLUSD_20250212
["timestamp","ask_amount","ask_price","bid_price","bid_amount"]
[1739349855459,82.2,196.55,196.54,5.088]
[1739349859352,82.2,196.55,196.52,5.0885]
[1739349862345,82.2,196.55,196.52,15.04093868]
[1739349864147,82.2,196.55,196.52,5.0885]
[1739349865270,82.2,196.55,196.52,15.04093868]
[1739349866365,82.263,196.55,196.52,15.04093868]
[1739349867150,82.263,196.55,196.52,5.0885]
[1739349870868,82.263,196.55,196.52,15.04093868]
[1739349871272,82.263,196.55,196.52,5.0885]
[1739349873772,82.263,196.55,196.54,20.0]
[1739349874650,82.263,196.55,196.54,25.088]
[1739349876948,82.263,196.55,196.5,0.03]
[1739349877276,82.263,196.55,196.51,5.0887]
[1739349881786,82.263,196.55,196.54,29.95243868]
[1739349881986,82.263,196.55,196.54,30.32890868]
[1739349882359,0.063,196.55,196.54,43.86624721]
[1739349883764,0.063,196.55,196.54,48.95424721]
[1739349884383,82.2,196.58,196.57,0.37647]
[1739349884697,0.063,196.59,196.57,10.32890868]
[1739349885062,0.063,196.59,196.58,29.95243868]
[1739349885491,0.063,196.59,196.58,35.03933868]
[1739349886505,0.063,196.59,196.58,20.0]
[1739349888082,0.063,196.59,196.55,0.37647]
[1739349888292,0.063,196.59,196.55,5.46417]
[1739349888578,0.063,196.59,196.58,20.0]
[1739349892278,0.063,196.59,196.57,20.0]
[1739349892489,0.063,196.59,196.53,5.0882]
[1739349892490,92.15243868,196.58,196.53,5.0882]
[1739349892659,9.95243868,196.56,196.53,5.0882]
[1739349893696,9.95243868,196.56,196.52,5.0885]
[1739349894059,9.95243868,196.55,196.52,5.0885]
[1739349894260,9.95243868,196.56,196.52,5.0885]
[1739349894496,92.15243868,196.55,196.52,5.0885]
[1739349895564,92.15243868,196.55,196.53,20.0]
[1739349895979,82.2,196.55,196.53,20.0]
[1739349896284,3.76,196.54,196.53,20.0]
[1739349897977,3.76,196.54,196.52,5.0884]
[1739349898181,9.95243868,196.56,196.52,5.0884]
[1739349898370,9.95243868,196.55,196.5,5.1188]
[1739349898681,9.95243868,196.54,196.5,5.1188]
[1739349899275,9.95243868,196.55,196.5,5.1188]
[1739349900476,82.2,196.53,196.52,20.0]
[1739349900774,85.96,196.53,196.52,20.0]
[1739349901481,85.96,196.53,196.52,25.46497]
[1739349901666,82.2,196.53,196.52,35.41740868]
[1739349901865,82.2,196.53,196.52,48.95474721]
[1739349903662,81.2,196.53,196.52,48.95474721]
[1739349906289,81.2,196.58,196.53,0.37647]
[1739349906479,81.2,196.57,196.53,10.32890868]
[1739349907304,9.95243868,196.56,196.52,5.0885]
[1739349907471,9.95243868,196.55,196.52,5.0885]
[1739349907673,9.95243868,196.53,196.5,0.03]
[1739349907980,81.2,196.52,196.5,5.119]
[1739349908397,81.2,196.52,196.5,0.03]
[1739349909307,81.2,196.52,196.51,20.0]
[1739349909482,84.96,196.52,196.51,20.0]
[1739349910272,84.96,196.52,196.51,25.0887]
[1739349910571,81.2,196.52,196.51,25.0887]
[1739349911292,81.2,196.52,196.51,20.0]
[1739349911489,84.96,196.52,196.51,20.0]
[1739349911869,84.96,196.52,196.51,25.0887]
[1739349912064,81.2,196.52,196.51,25.0887]
[1739349912269,9.95243868,196.54,196.51,25.0887]
[1739349912590,9.95243868,196.55,196.51,25.0887]
[1739349913188,9.95243868,196.56,196.51,25.0887]
[1739349913390,0.063,196.59,196.53,9.95243868]
[1739349913581,92.15243868,196.58,196.52,9.95243868]
[1739349913775,0.063,196.55,196.52,9.95243868]
[1739349914086,82.2,196.54,196.52,9.95243868]
[1739349914288,82.2,196.54,196.51,35.04113868]
[1739349914487,82.2,196.54,196.51,25.0887]
[1739349914690,82.2,196.54,196.51,35.04113868]
[1739349917693,82.2,196.54,196.52,10.32890868]
[1739349917881,82.2,196.54,196.53,10.32890868]
[1739349918894,0.063,196.55,196.54,0.12549]
[1739349919078,0.063,196.55,196.54,9.95243868]
[1739349919401,0.063,196.55,196.53,5.0882]
[1739349920180,0.063,196.55,196.53,15.04063868]
[1739349922397,0.063,196.55,196.52,0.37647]
[1739349922595,82.2,196.54,196.5,0.03]
[1739349922898,82.2,196.54,196.51,5.0887]
[1739349925797,82.2,196.54,196.53,0.03]
[1739349926584,92.15243868,196.54,196.53,0.03]
[1739349927192,9.95243868,196.54,196.53,0.03]
[1739349929688,10.01543868,196.55,196.53,0.03]
[1739349930588,9.95243868,196.54,196.53,0.03]
[1739349933191,11.61743868,196.55,196.53,0.03]
[1739349936592,0.063,196.55,196.53,0.03]
[1739349937705,0.063,196.55,196.53,5.1182]
[1739349937915,0.063,196.55,196.53,15.07063868]
[1739349938122,0.063,196.55,196.54,0.37647]
[1739349938411,0.063,196.55,196.54,10.32890868]
[1739349939695,0.063,196.55,196.54,15.41690868]
[1739349941591,0.063,196.55,196.54,20.0]
[1739349943217,10.01543868,196.55,196.53,0.03]
[1739349945834,9.95243868,196.54,196.53,0.03]
[1739349946120,92.15243868,196.54,196.53,0.03]
[1739349947822,97.24043868,196.54,196.53,0.03]
[1739349949106,16.54823868,196.54,196.53,0.03]
[1739349960705,17.67372868,196.54,196.53,0.03]
[1739349961006,30.39372868,196.54,196.5,0.03]
[1739349961231,49.7621934,196.51,196.5,0.03]
[1739349961408,49.8876834,196.51,196.5,0.03]
[1739349961612,2.12549,196.5,196.43,0.03]
[1739349961828,9.95243868,196.44,196.43,0.03]
[1739349965229,9.95243868,196.45,196.43,0.03]
[1739349965539,9.95243868,196.47,196.43,0.03]
[1739349966214,2.77249,196.54,196.43,9.98243868]
[1739349966215,9.95243868,196.49,196.43,9.98243868]
[1739349966426,9.95243868,196.48,196.43,0.03]
[1739349967028,9.95243868,196.54,196.47,9.95243868]
[1739349967235,9.95243868,196.54,196.45,0.37647]
[1739349967236,9.95243868,196.54,196.48,15.04193868]
[1739349967415,9.95243868,196.53,196.48,5.0895]
[1739349967830,9.95243868,196.52,196.48,5.0895]
[1739349968415,9.95243868,196.53,196.48,5.0895]
[1739349968925,9.95243868,196.52,196.46,5.0898]
[1739349969120,9.95243868,196.51,196.46,5.0898]
[1739349969325,9.95243868,196.51,196.46,25.0898]
[1739349969543,9.95243868,196.51,196.44,9.95243868]
[1739349969839,0.063,196.55,196.44,5.0903]
[1739349969840,9.95243868,196.5,196.44,5.0903]
[1739349970044,82.2,196.49,196.44,5.0903]
[1739349971524,92.15243868,196.49,196.44,5.0903]
[1739349971919,82.2,196.48,196.44,5.0903]
[1739349972120,9.95243868,196.47,196.43,5.1208]
[1739349972336,9.95243868,196.47,196.44,20.0]
[1739349972516,92.15243868,196.46,196.43,0.03]
[1739349972720,92.15243868,196.45,196.43,0.03]
[1739349972942,92.15243868,196.44,196.43,0.03]
[1739349973144,9.95243868,196.44,196.43,0.03]
[1739349975235,15.04303868,196.44,196.43,0.03]
[1739349975415,17.81552868,196.44,196.35,0.03]
[1739349975619,49.7621934,196.43,196.35,0.03]
[1739349976442,64.55051193,196.43,196.35,0.03]
[1739349976641,65.55051193,196.43,196.35,0.03]
[1739349977626,46.97629877,196.43,196.35,0.03]
[1739349977824,15.59399012,196.43,196.35,0.03]
[1739349978847,20.68479012,196.43,196.35,0.03]
[1739349979039,15.59399012,196.43,196.35,0.03]
[1739349979560,15.59399012,196.43,196.36,15.59399012]
[1739349980045,15.59399012,196.43,196.37,5.0924]
[1739349982531,15.59399012,196.46,196.4,35.59399012]
[1739349982733,11.2616,196.51,196.4,20.0]
[1739349982923,5.0885,196.53,196.4,20.0]
[1739349983947,15.59399012,196.48,196.41,15.59399012]
[1739349984448,15.59399012,196.48,196.42,5.1211]
[1739349985850,15.59399012,196.47,196.42,5.1211]
[1739349986445,82.2,196.46,196.42,0.03]
[1739349989547,82.2,196.45,196.42,0.03]
[1739349990539,97.79399012,196.45,196.42,0.03]
[1739349990726,15.59399012,196.44,196.42,0.03]
[1739349994051,82.2,196.45,196.42,0.03]
[1739349994052,15.59399012,196.43,196.42,0.03]
[1739349996454,15.59399012,196.46,196.42,0.03]
[1739349996835,15.59399012,196.44,196.42,0.03]
[1739349997044,5.1528,196.47,196.42,0.03]
[1739349997045,15.59399012,196.43,196.42,0.03]
[1739349997641,9.97485423,196.43,196.42,0.03]
[1739350008059,9.97485423,196.44,196.42,0.03]
[1739350008437,10.03785423,196.45,196.42,0.03]
[1739350009948,9.97485423,196.44,196.42,0.03]
[1739350010472,0.063,196.45,196.42,0.03]
[1739350011836,9.97485423,196.44,196.42,0.03]
[1739350014368,10.03785423,196.45,196.42,0.03]
[1739350014538,0.063,196.45,196.42,0.03]
[1739350016360,0.063,196.45,196.42,10.00485423]
[1739350016577,0.063,196.45,196.42,0.03]
[1739350016755,10.03785423,196.45,196.42,0.03]
[1739350018172,10.03785423,196.45,196.42,5.1211]
[1739350019176,0.063,196.45,196.42,5.1211]
[1739350020270,10.03785423,196.45,196.42,0.03]
[1739350021279,9.97485423,196.44,196.42,0.03]
[1739350021461,9.97485423,196.43,196.42,0.03]
[1739350026183,10.03785423,196.45,196.42,0.03]
[1739350026357,9.97485423,196.44,196.42,0.03]
[1739350027767,9.97485423,196.43,196.42,0.03]
[1739350031077,9.97485423,196.44,196.42,0.03]
[1739350031284,10.03785423,196.45,196.42,0.03]
[1739350032783,9.97485423,196.44,196.42,0.03]
[1739350034059,82.2,196.43,196.42,0.03]
[1739350037080,92.17485423,196.43,196.42,0.03]
[1739350037691,82.2,196.43,196.42,0.03]
[1739350039990,10.03785423,196.45,196.42,0.03]
[1739350040901,0.063,196.45,196.42,0.03]
[1739350041884,0.063,196.45,196.42,10.00485423]
[1739350042265,0.063,196.45,196.43,9.97485423]
[1739350042477,0.063,196.45,196.44,9.97485423]
[1739350042675,0.063,196.45,196.44,15.06545423]
[1739350043788,0.063,196.45,196.44,5.0906]
[1739350043992,0.063,196.45,196.44,20.0]
[1739350044670,0.063,196.45,196.44,35.06545423]
[1739350046267,0.063,196.45,196.44,25.0906]
[1739350047081,0.063,196.45,196.44,20.0]
[1739350047569,0.063,196.45,196.42,5.1209]
[1739350047771,0.063,196.45,196.42,0.03]
[1739350048393,0.063,196.45,196.42,5.1209]
[1739350049291,0.063,196.45,196.42,15.09575423]
[1739350049793,0.063,196.45,196.44,9.97485423]
[1739350050091,0.063,196.45,196.44,29.97485423]
[1739350050781,0.063,196.45,196.44,20.0]
[1739350051267,0.063,196.45,196.44,25.0906]
[1739350051976,0.063,196.45,196.44,35.06545423]
[1739350053491,0.063,196.45,196.44,25.0906]
[1739350053806,0.063,196.45,196.44,20.0]
[1739350054276,0.063,196.45,196.42,0.03]
[1739350055376,0.063,196.45,196.42,5.121]
[1739350056999,0.063,196.45,196.42,15.09585423]
[1739350057297,0.063,196.45,196.44,29.97485423]
[1739350058485,0.063,196.45,196.44,30.35132423]
[1739350058683,0.063,196.45,196.44,35.44192423]
[1739350059192,0.063,196.45,196.44,48.97926276]
[1739350066886,0.063,196.45,196.44,25.46707]
[1739350069313,0.063,196.45,196.44,35.44192423]
[1739350072224,0.063,196.45,196.44,20.0]
[1739350074601,0.063,196.45,196.43,0.03]
[1739350074925,0.063,196.45,196.44,20.0]
[1739350076993,0.063,196.45,196.43,5.1208]
[1739350077715,0.063,196.45,196.43,15.09565423]
[1739350078712,0.063,196.45,196.44,10.35132423]
[1739350078898,0.063,196.45,196.44,35.44192423]
[1739350079213,0.063,196.45,196.44,15.44192423]
[1739350081115,0.063,196.45,196.44,28.97926276]
[1739350081314,0.063,196.47,196.46,33.53733853]
[1739350081521,0.063,196.47,196.46,43.51219276]
[1739350081926,0.063,196.47,196.46,43.88866276]
[1739350082302,82.2,196.52,196.51,20.0]
[1739350082502,85.96,196.52,196.51,20.0]
[1739350083217,85.96,196.52,196.51,35.06355423]
[1739350083420,82.2,196.52,196.51,35.06355423]
[1739350085919,82.2,196.52,196.51,29.97485423]
[1739350086908,82.2,196.52,196.5,15.06385423]
[1739350087319,82.2,196.52,196.51,20.0]
[1739350087530,3.74,196.52,196.51,20.0]
[1739350092829,3.74,196.52,196.49,35.06405423]
[1739350093829,82.2,196.51,196.49,35.06405423]
[1739350094332,82.2,196.51,196.48,15.06425423]
[1739350095310,82.2,196.51,196.5,20.0]
[1739350095509,85.94,196.51,196.5,25.089]
[1739350095706,82.2,196.51,196.5,25.089]
[1739350096855,82.2,196.51,196.5,35.06385423]
[1739350097715,82.2,196.51,196.5,35.44032423]
[1739350098111,82.2,196.51,196.5,48.97766276]
[1739350099518,0.063,196.54,196.53,20.37647]
[1739350099716,0.063,196.54,196.53,30.35132423]
[1739350101138,0.063,196.54,196.53,35.43952423]
[1739350106239,0.063,196.54,196.53,15.43952423]
[1739350107250,0.063,196.54,196.53,35.43952423]
[1739350110043,0.063,196.54,196.53,28.97686276]
[1739350118956,0.063,196.54,196.53,0.37647]
[1739350119455,0.063,196.54,196.53,5.46467]
[1739350120048,0.063,196.54,196.52,9.97485423]
[1739350120431,0.063,196.54,196.52,10.03785423]
[1739350120630,0.063,196.54,196.52,15.12625423]
[1739350121235,0.063,196.54,196.53,9.97485423]
[1739350122934,0.063,196.54,196.53,15.06305423]
[1739350123332,82.263,196.54,196.53,15.06305423]
[1739350130432,82.263,196.54,196.53,28.97686276]
[1739350135063,0.063,196.54,196.53,28.97686276]
[1739350135842,0.063,196.54,196.53,15.06305423]
[1739350136143,0.063,196.54,196.52,10.03785423]
[1739350136548,0.063,196.54,196.53,20.0]
[1739350137850,0.063,196.54,196.52,0.063]
[1739350138667,0.063,196.54,196.53,20.0]
[1739350144568,0.063,196.54,196.52,5.1514]
[1739350145165,0.063,196.54,196.52,15.12625423]
[1739350145474,0.063,196.54,196.53,9.97485423]
[1739350146568,0.063,196.54,196.53,15.43952423]
[1739350146877,0.063,196.54,196.53,28.97686276]
[1739350155757,0.063,196.59,196.54,13.91380853]
[1739350155959,0.063,196.59,196.58,10.35132423]
[1739350156159,0.063,196.59,196.58,23.88866276]
[1739350156958,0.0001,196.59,196.58,28.97556276]
[1739350157896,0.0001,196.59,196.58,29.97556276]
[1739350158084,0.0001,196.61,196.6,23.88866276]
[1739350158598,0.0001,196.61,196.6,63.78807968]
[1739350158759,0.0001,196.62,196.61,13.91380853]
[1739350158964,0.0001,196.62,196.61,28.97486276]
[1739350159882,0.0001,196.62,196.61,29.97486276]
[1739350161968,0.0001,196.62,196.61,29.97486276]
[1739350162578,0.0001,196.62,196.61,30.73747148]
[1739350163283,0.0001,196.62,196.61,31.73747148]
[1739350163889,0.0001,196.63,196.62,14.91380853]
[1739350164089,0.0001,196.63,196.62,24.88866276]
[1739350164267,0.063,196.64,196.62,24.88866276]
[1739350164268,0.0001,196.64,196.63,14.91380853]
[1739350164472,0.0001,196.64,196.63,24.88866276]
[1739350165289,0.0001,196.64,196.63,29.97426276]
[1739350166283,0.03,196.68,196.67,20.0]
[1739350166467,0.03,196.68,196.67,43.88866276]
[1739350168595,0.03,196.68,196.67,48.97326276]
[1739350176201,0.03,196.68,196.67,51.59646276]
[1739350176202,0.0001,196.68,196.67,51.59646276]
[1739350176387,0.03,196.74,196.67,51.59646276]
[1739350176388,0.03,196.74,196.72,13.91380853]
[1739350176591,0.03,196.74,196.73,23.88866276]
[1739350177579,0.03,196.74,196.73,28.97176276]
[1739350179187,0.03,196.74,196.73,13.91380853]
[1739350179602,0.03,196.74,196.71,5.0835]
[1739350179982,0.03,196.74,196.72,0.12549]
[1739350183182,0.03,196.74,196.7,18.87201853]
[1739350184285,0.03,196.74,196.73,20.0]
[1739350185104,0.03,196.74,196.73,43.88866276]
[1739350186384,0.03,196.74,196.73,48.97176276]
[1739350186586,0.03,196.74,196.73,38.99690853]
[1739350187317,0.03,196.74,196.73,48.97176276]
[1739350198414,0.0001,196.74,196.73,48.97176276]
[1739350198617,0.0001,196.74,196.73,49.97176276]
[1739350200304,0.0001,196.74,196.73,48.97176276]
[1739350200522,0.0001,196.74,196.73,49.97176276]
[1739350205618,0.0001,196.74,196.73,48.97176276]
[1739350209009,0.0001,196.74,196.73,38.99690853]
[1739350209206,0.0001,196.74,196.73,38.87141853]
[1739350211602,0.0001,196.74,196.73,48.97176276]
[1739350214710,0.0001,196.74,196.73,38.87141853]
[1739350215128,0.0001,196.74,196.73,38.93441853]
[1739350215922,0.0001,196.74,196.73,48.90927276]
[1739350217218,0.0001,196.74,196.73,38.93441853]
[1739350218445,0.0001,196.74,196.73,0.063]
[1739350218608,0.0001,196.74,196.73,25.1461]
[1739350227218,0.0001,196.74,196.73,38.93441853]
[1739350227415,0.0001,196.74,196.73,25.1461]
[1739350227616,0.0001,196.74,196.73,20.063]
[1739350227812,0.0001,196.74,196.73,25.1461]
[1739350230041,9.97495423,196.74,196.73,0.063]
[1739350231553,0.0001,196.74,196.73,0.063]
[1739350235043,9.97495423,196.74,196.73,0.063]
[1739350235651,11.54025423,196.74,196.73,0.063]
[1739350236047,1.5654,196.74,196.73,0.063]
[1739350238924,11.54025423,196.74,196.73,0.063]
[1739350240033,1.5654,196.74,196.73,0.063]
[1739350241048,0.0001,196.74,196.73,0.063]
[1739350241659,0.0001,196.74,196.73,10.16334423]
[1739350241864,0.0001,196.74,196.73,23.95166276]
[1739350243235,0.0001,196.74,196.73,29.03476276]
[1739350247251,0.03,196.82,196.77,20.50196]
[1739350247440,0.03,196.82,196.8,0.12549]
[1739350248158,0.03,196.82,196.79,0.12549]
[1739350249141,0.03,196.82,196.81,43.88866276]
[1739350250758,0.03,196.82,196.81,48.96966276]
[1739350250954,0.0001,196.82,196.81,36.15736276]
[1739350251146,0.03,196.88,196.87,33.91380853]
[1739350251349,0.03,196.88,196.87,45.49406276]
[1739350251733,0.03,196.88,196.87,50.5156609]
[1739350251939,16.24335423,197.0,196.91,20.0]
[1739350252133,6.2685,197.0,196.93,10.10034423]
[1739350252339,1.5514,197.02,196.93,23.76317276]
[1739350252632,11.52625423,197.02,196.93,23.76317276]
[1739350252833,9.97485423,197.01,196.93,28.96656276]
[1739350253063,11.52625423,197.02,196.93,28.96656276]
[1739350253243,1.5514,197.02,196.93,28.96656276]
[1739350253440,9.97485423,197.05,196.93,28.96656276]
[1739350254146,9.97485423,197.04,196.93,28.96656276]
[1739350254940,15.04995423,197.04,196.93,28.96656276]
[1739350255142,9.97485423,197.04,196.93,28.96656276]
[1739350255744,15.04995423,197.04,196.93,28.96656276]
[1739350255970,9.97485423,197.03,196.93,28.96656276]
[1739350256940,9.97485423,197.01,196.93,28.96656276]
[1739350257141,9.97485423,197.01,196.93,23.88866276]
[1739350257764,9.97485423,197.0,196.93,23.88866276]
[1739350258061,9.97485423,197.01,196.93,23.88866276]
[1739350258241,9.97485423,197.02,196.93,23.88866276]
[1739350258852,9.97485423,197.0,196.93,23.88866276]
[1739350259460,9.97485423,197.01,196.93,23.88866276]
[1739350259643,9.97485423,197.01,196.93,28.96656276]
[1739350260158,9.97485423,197.01,196.93,23.88866276]
[1739350260339,9.97485423,197.01,196.93,28.96656276]
[1739350260539,9.97485423,197.02,196.93,28.96656276]
[1739350260964,9.97485423,197.01,196.93,28.96656276]
[1739350261159,15.05075423,197.01,196.93,23.76317276]
[1739350261362,9.97485423,196.97,196.9,9.97485423]
[1739350261566,9.97485423,196.95,196.89,9.97485423]
[1739350261864,10.00485423,196.94,196.9,0.12549]
[1739350262160,9.97485423,196.92,196.86,9.97485423]
[1739350262374,9.97485423,196.92,196.86,13.78831853]
[1739350262565,92.17485423,196.93,196.87,9.97485423]
[1739350263157,82.2,196.93,196.88,13.78831853]
[1739350263461,82.2,196.93,196.88,23.76317276]
[1739350263643,82.2,196.93,196.88,13.78831853]
[1739350264247,82.2,196.93,196.88,23.76317276]
[1739350264569,82.2,196.93,196.89,9.97485423]
[1739350265658,0.03,196.94,196.92,0.12549]
[1739350266168,0.03,196.94,196.92,10.10034423]
[1739350266676,0.03,196.94,196.93,10.10034423]
[1739350266850,0.03,196.94,196.93,23.88866276]
[1739350267263,0.03,196.94,196.93,28.96656276]
[1739350267654,0.03,196.94,196.93,35.47504568]
[1739350267848,0.03,196.94,196.93,34.47504568]
[1739350268053,0.03,196.94,196.93,35.47504568]
[1739350268373,82.2,197.04,196.97,20.50196]
[1739350268572,82.2,197.04,197.0,0.12549]
[1739350269374,82.2,197.04,197.0,20.68492715]
[1739350269549,82.2,197.04,197.0,15.60882715]
[1739350270160,82.2,197.09,197.05,15.48333715]
[1739350270362,97.68333715,197.09,197.04,0.12549]
[1739350270558,15.48333715,197.08,197.04,0.12549]
[1739350271653,97.68333715,197.09,197.04,13.91380853]
[1739350273972,15.48333715,197.06,197.03,20.0]
[1739350274768,15.48333715,197.06,197.02,20.0]
[1739350274974,15.48333715,197.03,196.97,15.48333715]
[1739350275173,15.48333715,197.01,196.98,20.0]
[1739350275384,15.48333715,197.0,196.94,15.48333715]
[1739350275671,15.48333715,197.0,196.93,15.48333715]
[1739350275851,15.48333715,197.0,196.97,20.0]
[1739350276257,15.48333715,196.98,196.97,20.0]
[1739350276457,15.48333715,196.98,196.95,20.0]
[1739350276758,15.48333715,196.99,196.96,20.0]
[1739350277166,15.48333715,196.99,196.94,0.37647]
[1739350277370,15.48333715,197.0,196.94,0.37647]
[1739350278055,15.48333715,197.0,196.96,20.0]
[1739350278253,15.48333715,197.04,196.98,15.48333715]
[1739350278665,108.90183715,197.05,196.98,15.48333715]
[1739350278882,108.90183715,197.05,197.0,15.48333715]
[1739350278883,82.23,197.05,197.0,15.48333715]
[1739350280053,15.48333715,197.04,197.02,20.0]
[1739350280677,15.48333715,197.03,196.97,29.02067568]
[1739350280985,15.48333715,197.0,196.94,20.56083715]
[1739350281153,15.48333715,196.99,196.97,20.0]
[1739350281760,15.48333715,196.98,196.91,20.56173715]
[1739350281969,15.48333715,196.98,196.92,13.91380853]
[1739350282171,15.48333715,196.98,196.95,20.0]
[1739350282378,15.48333715,197.0,196.95,20.0]
[1739350282577,15.48333715,197.0,196.95,0.37647]
[1739350282776,15.48333715,196.99,196.93,15.48333715]
[1739350282979,15.48333715,196.98,196.92,13.53733853]
[1739350283277,15.48333715,196.98,196.93,0.37647]
[1739350283675,15.48333715,196.98,196.94,20.0]
[1739350283980,15.48333715,196.96,196.92,0.37647]
[1739350284183,15.48333715,196.96,196.91,5.0784]
[1739350284687,15.48333715,196.97,196.91,20.56173715]
[1739350285382,15.48333715,196.98,196.91,20.56173715]
[1739350285763,15.48333715,196.97,196.91,20.56173715]
[1739350286583,15.48333715,196.98,196.91,20.56173715]
[1739350286783,82.2,196.97,196.91,20.56173715]
[1739350286979,82.2,196.97,196.92,34.47514568]
[1739350287388,82.2,196.97,196.92,18.99180853]
[1739350287568,97.68333715,196.97,196.92,5.45447]
[1739350287775,15.48333715,196.95,196.9,73.00395615]
[1739350288187,82.2,196.96,196.9,88.4872933]
[1739350288477,82.2,196.96,196.91,0.063]
[1739350289384,15.48333715,196.94,196.91,0.063]
[1739350290682,15.48333715,196.93,196.91,0.063]
[1739350291186,97.68333715,196.92,196.91,0.063]
[1739350291380,102.76153715,196.92,196.91,0.063]
[1739350291590,104.30553715,196.92,196.91,0.063]
[1739350292594,22.10553715,196.92,196.91,0.063]
[1739350295289,17.02733715,196.92,196.91,0.063]
[1739350295797,22.10553715,196.92,196.91,0.063]
[1739350296281,17.02733715,196.92,196.91,0.063]
[1739350298581,15.48333715,196.93,196.91,0.063]
[1739350298779,15.48333715,196.95,196.91,0.063]
[1739350299190,15.48333715,196.94,196.91,0.063]
[1739350299379,15.48333715,196.95,196.91,0.063]
[1739350299780,15.48333715,196.94,196.91,0.063]
[1739350300193,15.51333715,196.94,196.91,0.063]
[1739350300489,15.48333715,196.93,196.91,0.063]
[1739350300692,15.48333715,196.92,196.91,0.063]
[1739350303883,20.56153715,196.92,196.91,0.063]
[1739350304201,21.56153715,196.92,196.91,0.063]
[1739350306393,15.48333715,196.92,196.91,0.063]
[1739350306895,20.56153715,196.92,196.91,0.063]
[1739350309206,21.56153715,196.92,196.91,0.063]
[1739350309601,1.0,196.91,196.88,0.063]
[1739350309797,15.48333715,196.89,196.88,0.063]
[1739350311113,20.56223715,196.89,196.88,0.063]
[1739350314616,15.48333715,196.89,196.88,0.063]
[1739350315720,20.56223715,196.89,196.88,0.063]
[1739350322518,15.48333715,196.89,196.88,0.063]
[1739350322924,15.48333715,196.91,196.88,0.063]
[1739350323930,15.48333715,196.9,196.88,0.063]
[1739350324100,0.03,196.94,196.88,0.063]
[1739350324101,15.48333715,196.91,196.88,0.063]
[1739350324306,15.48333715,196.92,196.88,0.063]
[1739350324734,0.03,196.91,196.88,0.063]
[1739350326703,0.03,196.91,196.89,20.0]
[1739350327804,0.03,196.91,196.88,0.063]
[1739350328142,15.48333715,196.9,196.88,0.063]
[1739350328844,15.48333715,196.89,196.88,0.063]
[1739350329342,20.56223715,196.89,196.88,0.063]
[1739350330837,20.56223715,196.89,196.78,1.5937]
[1739350330838,83.2,196.88,196.78,1.5937]
[1739350331008,83.2,196.88,196.74,35.0558811]
[1739350331009,15.48333715,196.8,196.74,35.0558811]
[1739350331211,15.48333715,196.8,196.77,20.0]
[1739350331652,15.48333715,196.81,196.77,20.0]
[1739350331846,15.48333715,196.79,196.77,20.0]
[1739350332015,15.48333715,196.81,196.77,20.0]
[1739350333145,15.48333715,196.8,196.77,20.0]
[1739350333349,15.48333715,196.8,196.75,13.78831853]
[1739350333923,15.48333715,196.79,196.75,0.37647]
[1739350334129,15.48333715,196.78,196.74,11.6744]
[1739350334550,15.48333715,196.79,196.74,11.6744]
[1739350334845,15.48333715,196.8,196.76,5.0823]
[1739350337250,15.48333715,196.8,196.76,5.1453]
[1739350337622,15.48333715,196.81,196.76,5.1453]
[1739350339947,15.48333715,196.8,196.76,5.1453]
[1739350340153,15.48333715,196.8,196.76,0.063]
[1739350340361,15.48333715,196.78,196.76,0.063]
[1739350340866,97.68333715,196.79,196.76,0.063]
[1739350341567,97.68333715,196.78,196.76,0.063]